bitfinex/quotes_ETHUSD_20260313
["timestamp","ask_amount","ask_price","bid_price","bid_amount"]
[1773414153394,1.51815982,2149.2,2148.6,0.0011]
[1773414153597,6.00763646,2149.1,2148.4,0.0011]
[1773414153763,5.96388999,2149.1,2148.4,0.0011]
[1773414154081,5.9072722,2149.1,2148.4,0.0011]
[1773414154286,7.63828298,2149.0,2148.4,0.0011]
[1773414154485,6.0079361,2149.0,2148.4,0.0011]
[1773414154665,5.96498443,2149.0,2148.4,0.0011]
[1773414154866,5.92251491,2149.0,2148.4,0.0011]
[1773414155085,5.881017,2149.0,2148.4,0.0011]
[1773414155262,5.86610464,2149.0,2148.4,0.0011]
[1773414155462,5.83770468,2149.0,2148.4,0.0011]
[1773414155664,5.79394003,2149.0,2148.4,0.0011]
[1773414155905,5.75072244,2149.0,2148.4,0.0011]
[1773414156070,6.03734905,2149.4,2148.4,0.0011]
[1773414156393,6.05128298,2149.3,2148.4,0.0011]
[1773414156572,6.00788493,2149.3,2148.4,0.0011]
[1773414157294,6.05128298,2149.1,2148.3,0.0011]
[1773414157504,6.02265216,2148.9,2147.6,1.16409014]
[1773414157663,6.02265216,2148.9,2147.1,0.15982351]
[1773414157664,6.03628157,2148.5,2146.4,6.31510431]
[1773414157865,5.99349906,2148.5,2147.0,6.31510431]
[1773414158086,5.96438162,2148.5,2147.1,6.36167875]
[1773414158294,6.05128298,2148.9,2147.1,6.36167875]
[1773414158604,6.05128298,2148.9,2147.3,6.31510431]
[1773414158605,5.99306662,2148.9,2147.3,6.31510431]
[1773414158817,5.95026028,2148.9,2147.4,6.36167225]
[1773414159027,5.89255346,2148.9,2147.0,6.31510431]
[1773414159325,6.03693171,2148.7,2147.0,7.94823332]
[1773414159480,6.03628752,2148.5,2147.1,0.04657444]
[1773414159785,5.9647511,2148.5,2147.0,6.31510431]
[1773414159982,1.587,2148.4,2147.1,1.16436123]
[1773414160186,6.02342314,2148.4,2147.2,0.04657228]
[1773414160382,6.00901549,2148.4,2147.2,0.04657228]
[1773414160589,5.96454551,2148.4,2147.2,0.04657228]
[1773414161192,6.05128298,2148.8,2147.2,6.36167659]
[1773414161381,3.899983,2148.7,2147.2,6.36167659]
[1773414161803,6.09765656,2148.7,2147.2,6.36167659]
[1773414162008,6.09765656,2148.7,2147.3,1.16425278]
[1773414162207,7.26116165,2148.7,2147.4,0.04656794]
[1773414162506,6.05128298,2148.3,2147.3,1.16425278]
[1773414162684,6.03658795,2148.3,2147.3,1.16425278]
[1773414163004,5.96704366,2148.3,2146.9,1.1644697]
[1773414163194,5.9242968,2148.3,2146.9,1.1644697]
[1773414163395,6.05128298,2148.1,2146.9,1.1644697]
[1773414163707,5.99524893,2148.1,2146.9,1.1644697]
[1773414164021,5.93682547,2148.1,2147.3,0.0011]
[1773414164220,5.89321558,2148.1,2147.3,0.0011]
[1773414164526,7.02762993,2148.1,2147.3,0.0011]
[1773414164681,7.02762993,2148.1,2147.0,0.0011]
[1773414164682,9.176982,2148.0,2147.0,0.0011]
[1773414164885,6.02346609,2147.7,2146.3,4.65903944]
[1773414165092,6.00953602,2147.5,2146.3,4.65903944]
[1773414165307,5.96664427,2147.5,2146.3,4.65903944]
[1773414165526,5.96664427,2147.5,2146.4,0.04658963]
[1773414165716,2.46767745,2147.8,2146.4,6.36169394]
[1773414165929,6.03757835,2147.7,2146.5,1.16468669]
[1773414166124,5.99393292,2147.7,2146.5,1.21127415]
[1773414166279,7.11535021,2147.7,2146.5,1.16468669]
[1773414166481,7.94980753,2147.6,2146.5,1.16468669]
[1773414166800,6.35055777,2148.0,2146.6,6.25839552]
[1773414167005,2.63336956,2148.5,2146.6,6.25839552]
[1773414167006,6.36480753,2148.4,2146.6,6.25839552]
[1773414167198,0.01887955,2148.3,2146.7,6.21181023]
[1773414167591,4.65333974,2149.0,2146.5,2.7978157]
[1773414167592,6.36580753,2148.8,2147.4,7.84454895]
[1773414167789,0.01887955,2148.7,2147.5,6.258376]
[1773414167993,0.001,2148.8,2147.7,6.21181023]
[1773414167994,0.01987955,2148.8,2147.7,6.21181023]
[1773414168227,0.01887955,2148.7,2147.7,6.21181023]
[1773414168379,7.51350799,2149.1,2147.6,1.16409014]
[1773414168582,7.51350799,2149.1,2147.4,4.65636058]
[1773414168583,6.35071837,2148.9,2147.4,4.65664721]
[1773414168796,6.36480753,2148.5,2147.0,4.65765581]
[1773414169110,6.32266383,2148.3,2147.1,0.04657444]
[1773414169278,6.36480753,2148.7,2147.1,6.25838467]
[1773414169487,11.87561153,2148.5,2147.1,6.21181023]
[1773414169807,11.87561153,2148.5,2147.0,4.65765581]
[1773414169808,6.35103593,2148.2,2147.2,0.028662]
[1773414169985,6.591638,2147.9,2147.0,4.65765581]
[1773414170181,6.591638,2147.9,2146.8,1.16452394]
[1773414170182,5.09113534,2147.9,2146.8,1.16452394]
[1773414170420,11.41319427,2147.9,2146.9,0.057398]
[1773414170589,6.35105413,2147.9,2146.9,0.08606]
[1773414170918,6.29260978,2147.9,2146.9,0.08606]
[1773414171093,6.14538916,2147.5,2146.0,1.16495806]
[1773414171298,6.14496106,2147.3,2145.5,8.57801531]
[1773414171496,6.15961033,2146.9,2145.6,4.66051306]
[1773414171698,10.958685,2146.6,2144.6,6.357427]
[1773414171917,6.13013728,2146.7,2145.8,0.028547]
[1773414172219,4.26017386,2146.6,2145.8,1.1650337]
[1773414172422,8.22557933,2146.4,2145.1,4.66135272]
[1773414172595,6.15961033,2146.0,2144.2,4.663708]
[1773414172916,7.2,2145.9,2144.3,0.04663526]
[1773414173115,6.14548945,2145.9,2144.3,6.40406226]
[1773414173289,6.14548945,2145.9,2144.2,4.663708]
[1773414173290,6.15961033,2145.7,2144.2,4.663708]
[1773414173484,1.583,2145.6,2144.3,6.40406226]
[1773414173815,17.92779,2145.3,2144.0,1.16604477]
[1773414174013,6.14494974,2145.3,2144.0,1.16604477]
[1773414174313,6.14494974,2145.3,2142.3,6.357427]
[1773414174314,6.15961033,2144.7,2142.3,6.357427]
[1773414174516,6.15961033,2144.4,2143.5,1.30274186]
[1773414174689,6.14497489,2144.4,2143.5,0.1364487]
[1773414175016,6.15961033,2144.0,2142.8,1.16669777]
[1773414175312,6.15961033,2144.0,2142.1,6.30496517]
[1773414175313,6.15961033,2143.8,2139.9,6.357427]
[1773414175615,6.15961033,2143.7,2142.1,1.63273872]
[1773414175816,2.50326409,2143.9,2142.0,0.04668534]
[1773414175817,6.15961033,2143.5,2142.0,0.04668534]
[1773414176112,6.15961033,2143.5,2142.0,1.16713352]
[1773414176320,6.11728246,2143.5,2142.0,1.16713352]
[1773414176524,6.11728246,2143.5,2142.0,1.21381886]
[1773414176688,6.11728246,2143.5,2142.0,1.16713352]
[1773414176889,6.08971719,2143.5,2142.8,0.028994]
[1773414177090,5.92713,2143.7,2142.6,0.028994]
[1773414177322,4.001959,2143.7,2142.6,0.028994]
[1773414177616,1.583,2143.8,2143.1,0.028994]
[1773414177833,1.583,2143.8,2142.9,0.028994]
[1773414177990,1.52570255,2143.8,2143.0,1.16658889]
[1773414178191,1.52570255,2143.8,2142.9,1.16661757]
[1773414178192,1.48218715,2143.8,2142.9,1.16661757]
[1773414178495,17.45009633,2143.7,2142.4,4.66757068]
[1773414178710,6.15961033,2143.6,2142.6,0.028994]
[1773414178898,6.15961033,2143.6,2143.1,0.028994]
[1773414179095,6.15961033,2143.6,2142.7,0.028994]
[1773414179096,6.14516719,2143.6,2142.7,0.028994]
[1773414179414,1.43964352,2143.8,2142.8,0.028994]
[1773414179593,1.39614386,2143.8,2142.8,0.028994]
[1773414179804,1.38154081,2143.8,2142.8,0.028994]
[1773414179997,2.50514451,2143.8,2142.9,1.16664333]
[1773414180195,6.15961033,2143.7,2142.7,4.6669939]
[1773414180396,1.30947811,2143.8,2142.8,1.16669777]
[1773414180813,1.30947811,2143.8,2143.2,0.028994]
[1773414181012,2.50326409,2144.5,2143.5,0.028994]
[1773414181206,2.48879058,2144.5,2143.6,0.028994]
[1773414181407,3.55012378,2144.6,2143.8,0.028994]
[1773414181720,1.92235752,2144.6,2144.0,0.028994]
[1773414181899,1.89326642,2144.6,2144.0,0.028994]
[1773414182100,1.85056622,2144.6,2144.1,1.16599039]
[1773414182311,1.85056622,2144.6,2143.7,0.028994]
[1773414182312,3.00248823,2144.6,2143.7,0.028994]
[1773414182517,2.95861025,2144.6,2143.5,1.16631677]
[1773414182818,0.02296355,2144.5,2143.7,0.028994]
[1773414183123,2.94395141,2144.6,2143.7,0.028994]
[1773414183498,6.646925,2144.4,2143.0,1.16658889]
[1773414183817,6.15961033,2144.5,2143.4,0.028994]
[1773414184123,1.16582727,2144.4,2143.5,1.16631677]
[1773414184441,1.15109198,2144.4,2143.5,1.16631677]
[1773414184622,13.348599,2144.3,2142.5,6.29931205]
[1773414184821,13.348599,2144.3,2142.8,6.357427]
[1773414184822,5.922496,2144.2,2142.8,6.357427]
[1773414185135,2.2271,2144.2,2142.8,6.40409491]
[1773414185342,2.94398463,2144.6,2142.9,7.99016572]
[1773414185500,2.91506576,2144.6,2143.0,6.40409055]
[1773414185822,1.74931352,2144.6,2143.0,6.357427]
[1773414186036,2.90042529,2144.6,2143.0,6.357427]
[1773414186327,2.88623026,2144.6,2143.1,1.21319582]
[1773414186733,2.88623026,2144.6,2143.1,7.52396145]
[1773414186944,1.72045984,2144.6,2143.1,7.52396145]
[1773414187224,1.72045984,2144.6,2143.4,6.357427]
[1773414187395,8.91099804,2145.3,2143.4,6.357427]
[1773414187595,1.586,2145.3,2143.8,6.357427]
[1773414187826,1.16510079,2145.8,2143.8,6.357427]
[1773414188024,8.339258,2145.7,2143.8,6.357427]
[1773414188263,1.16517524,2145.6,2144.0,6.357427]
[1773414188419,4.66039098,2145.8,2144.2,6.357427]
[1773414188750,3.380191,2145.7,2144.2,6.357427]
[1773414188955,4.66039098,2145.8,2144.2,6.357427]
[1773414189152,6.15961033,2145.6,2144.1,2.52994848]
[1773414189334,0.001,2144.2,2144.1,2.52994848]
[1773414189536,6.766009,2145.5,2143.9,1.16609916]
[1773414189754,8.707127,2145.4,2143.9,1.16609916]
[1773414190055,24.705658,2145.1,2143.9,1.16609916]
[1773414190248,2.72277751,2145.0,2143.7,0.0011]
[1773414190450,21.25228972,2144.9,2143.7,0.0011]
[1773414190755,2.69419663,2145.0,2143.9,0.056625]
[1773414190963,2.69419663,2145.0,2144.0,0.056625]
[1773414191342,8.80394833,2144.9,2143.7,0.0011]
[1773414191543,3.1599,2144.8,2143.7,0.0011]
[1773414191736,2.69419663,2145.0,2143.7,0.0011]
[1773414192160,2.69419663,2145.0,2143.7,1.16730795]
[1773414192357,4.66200466,2145.2,2143.7,7.52473495]
[1773414192358,1.16543276,2145.2,2143.7,7.52473495]
[1773414192629,5.866168,2145.3,2143.7,7.52473495]
[1773414193129,1.586,2145.6,2143.8,6.357427]
[1773414193763,6.518872,2145.5,2143.8,6.357427]
[1773414193938,1.586,2145.6,2143.8,6.357427]
[1773414194265,9.88551979,2146.0,2144.8,0.028502]
[1773414194446,4.65861142,2146.6,2145.8,0.028502]
[1773414194641,0.30560238,2146.7,2146.0,0.028502]
[1773414194845,3.716173,2147.2,2146.0,0.028502]
[1773414195030,3.884776,2147.2,2146.0,0.028502]
[1773414195955,4.6570939,2147.3,2146.2,0.028502]
[1773414196126,4.6570939,2147.3,2146.3,1.16479522]
[1773414196326,4.6570939,2147.3,2146.0,6.357427]
[1773414196530,4.6570939,2147.3,2146.1,1.16490377]
[1773414196749,4.6570939,2147.3,2146.2,0.028502]
[1773414196965,20.71011833,2147.2,2145.4,4.66104365]
[1773414197134,20.71011833,2147.2,2145.5,6.357427]
[1773414197135,3.90015,2147.1,2145.5,6.357427]
[1773414197640,4.6570939,2147.3,2145.8,6.357427]
[1773414197641,1.16425278,2147.3,2145.8,6.357427]
[1773414197871,1.12069932,2147.3,2145.7,1.63273872]
[1773414198076,1.12069932,2147.3,2145.8,6.357427]
[1773414198383,1.06347225,2147.3,2145.9,7.52243934]
[1773414198544,1.02112463,2147.3,2145.9,7.52243934]
[1773414198730,0.96331469,2147.3,2145.9,7.52243934]
[1773414198927,2.73648586,2147.4,2146.2,6.357427]
[1773414199238,1.57224565,2147.4,2146.2,6.357427]
[1773414199547,12.474664,2147.8,2146.2,6.357427]
[1773414199742,12.4608338,2147.8,2146.8,0.027574]
[1773414199941,2.227,2147.7,2146.6,0.027574]
[1773414200156,1.14903621,2147.9,2146.8,0.027574]
[1773414200157,13.708461,2147.8,2146.8,0.027574]
[1773414200355,13.708461,2147.8,2146.2,6.357427]
[1773414200356,5.828691,2147.6,2146.6,0.027574]
[1773414200658,5.38150809,2147.6,2146.6,0.056075]
[1773414200857,5.3396486,2147.6,2146.6,0.112616]
[1773414201073,5.31086975,2147.6,2146.6,0.141395]
[1773414201367,5.25403768,2147.6,2146.2,1.16480519]
[1773414201571,1.13519509,2147.7,2146.8,0.198227]
[1773414201727,1.10781708,2147.7,2146.8,0.198227]
[1773414201929,1.07918982,2147.7,2146.7,0.198227]
[1773414202260,0.001,2147.7,2146.9,1.1644697]
[1773414203057,4.65614378,2148.1,2147.1,0.198227]
[1773414203459,4.64175194,2148.1,2147.1,0.198227]
[1773414203676,4.59859452,2148.1,2147.1,0.198227]
[1773414203840,4.55459118,2148.1,2147.1,0.198227]
[1773414204035,0.001,2148.4,2147.6,0.198227]
[1773414204259,0.001,2148.4,2147.9,1.16392755]
[1773414204451,4.65246544,2149.4,2148.0,5.96911575]
[1773414204737,1.16295297,2149.7,2148.6,0.198227]
[1773414204991,1.16291824,2149.8,2149.0,0.198227]
[1773414205343,1.1628811,2149.9,2149.1,0.198227]
[1773414205561,1.537,2150.3,2149.2,0.198227]
[1773414205562,2.455611,2150.3,2149.2,0.198227]
[1773414205843,2.503127,2150.3,2149.3,0.198227]
[1773414206056,1.14788136,2150.4,2149.3,0.198227]
[1773414206057,1.11957707,2150.4,2149.3,0.198227]
[1773414206267,1.10569806,2150.4,2149.3,1.36134786]
[1773414206466,1.07813346,2150.4,2149.3,7.33046361]
[1773414206667,1.01948339,2150.4,2149.6,0.198227]
[1773414206876,15.9592599,2150.3,2149.3,0.22662]
[1773414207040,11.02854835,2150.3,2148.8,5.96911575]
[1773414207239,12.241656,2150.1,2148.8,0.05764]
[1773414207439,13.982694,2150.2,2148.8,0.085384]
[1773414207679,3.20267,2150.1,2148.8,0.114035]
[1773414207978,29.114611,2150.1,2148.8,0.114035]
[1773414208282,1.16268254,2150.2,2149.3,0.114035]
[1773414208464,5.60638,2150.1,2148.8,0.114035]
[1773414208668,13.463132,2150.0,2148.6,0.114035]
[1773414208969,6.823905,2150.0,2148.6,1.27758254]
[1773414209161,2.016612,2150.0,2148.9,0.114035]
[1773414209874,8.536442,2150.1,2148.9,0.114035]
[1773414210047,4.016205,2150.1,2148.9,0.114035]
[1773414210253,1.16268254,2150.2,2149.0,0.114035]
[1773414210454,3.674817,2150.2,2149.0,0.114035]
[1773414210648,3.674817,2150.2,2148.8,1.16341045]
[1773414210649,6.46780817,2150.1,2148.8,0.114035]
[1773414210961,3.9,2150.2,2149.1,0.114035]
[1773414211158,3.9,2150.2,2149.2,5.96911575]
[1773414211357,6.46780817,2150.8,2149.5,0.114035]
[1773414211565,6.46780817,2150.8,2149.7,4.014035]
[1773414211746,11.330834,2150.5,2148.8,1.16342907]
[1773414212072,2.306379,2150.5,2149.1,3.942045]
[1773414212257,2.306379,2150.5,2149.3,3.942045]
[1773414212460,1.14786251,2150.4,2149.8,3.912798]
[1773414212663,1.05158244,2150.4,2149.7,5.96911575]
[1773414212867,1.16236765,2150.8,2149.7,9.91116075]
[1773414213348,1.16236765,2150.8,2150.3,3.942045]
[1773414213547,1.16236765,2150.8,2150.1,3.942045]
[1773414214271,1.16236765,2150.8,2149.8,9.91116075]
[1773414214500,3.79769682,2150.9,2150.1,3.942045]
[1773414214773,4.64943276,2151.0,2150.1,3.942045]
[1773414215273,4.64943276,2151.0,2150.1,5.10476232]
[1773414215675,1.14853298,2151.0,2150.1,5.10476232]
[1773414215876,1.1047013,2151.0,2150.1,5.10476232]
[1773414216054,52.14725357,2151.1,2150.3,3.942045]
[1773414216379,52.13245448,2151.1,2150.5,3.942045]
[1773414216780,52.13245448,2151.1,2150.3,7.13170113]
[1773414216781,52.13245448,2151.1,2150.3,3.942045]
[1773414216955,52.13245448,2151.1,2149.8,5.96911575]
[1773414216956,52.13245448,2151.1,2149.8,7.13200926]
[1773414217149,52.13245448,2151.1,2150.0,3.942045]
[1773414217150,5.447995,2151.0,2150.0,3.942045]
[1773414218076,3.9,2151.0,2150.0,3.942045]
[1773414218679,1.16230415,2150.9,2150.1,1.16273661]
[1773414218985,50.97023097,2151.1,2150.5,3.942045]
[1773414219164,22.75339757,2151.1,2150.8,3.942045]
[1773414219475,22.72532766,2151.1,2150.8,3.942045]
[1773414219675,22.69708726,2151.1,2150.8,3.942045]
[1773414219873,22.65422778,2151.1,2150.8,3.942045]
[1773414220179,22.58188403,2151.1,2150.8,3.942045]
[1773414220472,22.53895267,2151.1,2150.8,3.942045]
[1773414220689,23.67229934,2151.1,2150.8,3.942045]
[1773414220989,23.6140084,2151.1,2150.8,3.942045]
[1773414221151,23.55760007,2151.1,2150.1,7.13182435]
[1773414221563,23.55760007,2151.1,2150.5,3.942045]
[1773414221759,23.5433804,2151.1,2150.5,3.942045]
[1773414222478,22.35198992,2151.1,2150.7,3.942045]
[1773414222776,22.30849051,2151.1,2150.8,1.16235819]
[1773414223075,2.75896508,2151.6,2150.8,1.16235819]
[1773414223382,1.58304047,2151.6,2150.8,5.10440319]
[1773414223553,2.73066669,2151.6,2150.8,5.10440319]
[1773414223753,2.73066669,2151.6,2150.9,3.942045]
[1773414224268,2.6744238,2151.6,2151.0,3.942045]
[1773414224471,2.63178194,2151.6,2151.0,3.942045]
[1773414224667,1.45480489,2151.6,2151.1,1.16219608]
[1773414224971,2.54485436,2151.6,2151.1,3.942045]
[1773414225168,2.50099384,2151.6,2150.7,7.13152647]
[1773414225383,2.45810162,2151.6,2150.8,3.942045]
[1773414225677,2.43001653,2151.6,2151.0,3.942045]
[1773414225984,2.3869979,2151.6,2150.3,5.96911575]
[1773414226147,2.35794651,2151.6,2150.5,5.96911575]
[1773414226350,4.426673,2151.5,2150.2,1.39148823]
[1773414226551,4.454,2151.5,2150.3,0.04650513]
[1773414226771,1.16203402,2151.4,2150.5,5.10452701]
[1773414226986,1.16203402,2151.4,2150.5,1.16248201]
[1773414226987,0.001,2150.9,2150.5,1.16248201]
[1773414227178,1.607,2150.8,2150.3,0.0011]
[1773414228087,1.607,2150.8,2150.0,0.0011]
[1773414228251,1.59266514,2150.8,2150.0,0.0011]
[1773414228459,1.54885396,2150.8,2150.0,0.0011]
[1773414228662,6.0269906,2150.6,2150.0,0.0011]
[1773414228879,1.13377556,2150.5,2150.0,0.0011]
[1773414229059,10.67707197,2150.6,2150.0,0.0011]
[1773414229060,1.13320101,2150.6,2150.0,0.0011]
[1773414229393,1.06191685,2150.6,2150.0,0.0011]
[1773414229688,1.03374725,2150.6,2150.0,0.0011]
[1773414229859,1.019176,2150.6,2150.0,0.0011]
[1773414230060,1.54885396,2150.8,2150.0,0.0011]
[1773414230459,1.16334,2150.9,2150.0,3.443145]
[1773414230679,1.16330466,2150.9,2150.1,0.04449459]
[1773414230858,1.16330466,2150.9,2150.0,1.16387578]
[1773414231058,1.16330466,2150.9,2150.1,0.04650946]
[1773414231268,1.16330466,2150.9,2150.3,3.442045]
[1773414231471,2.75777902,2151.0,2150.4,0.04650297]
[1773414231668,2.75777902,2151.0,2150.2,3.442045]
[1773414231867,9.12258695,2151.0,2150.1,3.442045]
[1773414232081,9.12258695,2151.0,2150.0,0.0011]
[1773414232281,9.07846319,2151.0,2150.1,3.442045]
[1773414232582,6.37892678,2150.8,2150.0,0.0011]
[1773414232787,1.16241223,2150.7,2150.0,0.0011]
[1773414232963,1.16241223,2150.7,2149.8,0.0011]
[1773414232964,7.54133901,2150.7,2149.8,0.0011]
[1773414233170,2.76573101,2150.6,2149.8,0.0011]
[1773414233483,6.32173519,2150.5,2149.8,0.0011]
[1773414233683,6.30707453,2150.5,2149.8,0.0011]
[1773414233984,6.24867956,2150.5,2149.8,0.0011]
[1773414234184,6.20457952,2150.5,2149.8,0.0011]
[1773414234796,7.54160932,2150.2,2149.8,0.0011]
[1773414235098,7.98992678,2150.1,2149.8,0.0011]
[1773414235295,6.37892678,2150.0,2148.6,1.1634986]
[1773414235527,6.37892678,2150.0,2149.0,3.528163]
[1773414235667,3.865311,2149.9,2148.9,3.528163]
[1773414236478,6.37892678,2149.8,2148.8,3.528163]
[1773414236863,1.16295297,2149.7,2148.8,3.528163]
[1773414237589,6.37892678,2149.6,2148.6,3.528163]
[1773414237967,6.36475424,2149.6,2148.6,3.528163]
[1773414238492,14.751619,2149.3,2148.3,3.528163]
[1773414238686,1.58309116,2149.2,2148.3,3.528163]
[1773414238863,1.16327765,2149.1,2148.3,3.528163]
[1773414239063,1.16327765,2149.1,2148.2,3.528163]
[1773414239064,1.11943969,2149.1,2148.2,3.528163]
[1773414239292,1.11943969,2149.1,2148.1,1.16380151]
[1773414239293,1.06173402,2149.1,2148.5,3.528163]
[1773414239482,1.01806155,2149.1,2148.2,3.528163]
[1773414239799,0.97434443,2149.1,2148.1,3.528163]
[1773414239985,7.32458063,2149.1,2148.1,3.528163]
[1773414240166,6.37892678,2148.9,2148.8,0.0011]
[1773414240370,6.37892678,2148.9,2148.5,0.0011]
[1773414240698,1.1631694,2149.3,2148.5,0.0011]
[1773414240993,1.611,2149.2,2148.7,4.69165719]
[1773414241194,1.611,2149.4,2148.8,3.528163]
[1773414241403,1.16273661,2150.1,2148.8,3.5747006]
[1773414241696,6.37892678,2149.8,2148.9,3.528163]
[1773414241893,10.926975,2149.7,2148.6,3.528163]
[1773414242124,6.37892678,2150.2,2149.0,3.528163]
[1773414242402,1.611,2150.1,2149.8,3.528163]
[1773414242610,0.001,2150.4,2149.8,3.528163]
[1773414242799,0.001,2150.4,2149.9,3.528163]
[1773414242970,0.001,2150.4,2149.8,3.528163]
[1773414243167,0.001,2150.4,2149.9,3.528163]
[1773414243387,0.001,2150.4,2150.0,3.528163]
[1773414243702,0.001,2150.4,2150.2,3.528163]
[1773414244416,1.58359608,2150.7,2150.2,3.528163]
[1773414244689,2.67347005,2150.7,2150.2,3.528163]
[1773414244893,2.65927647,2150.7,2150.2,3.528163]
[1773414245071,2.64450602,2150.7,2150.2,3.528163]
[1773414245271,2.62993333,2150.7,2150.1,3.528163]
[1773414245666,2.61586129,2150.7,2150.1,3.528163]
[1773414245891,2.60193748,2150.7,2150.1,3.528163]
[1773414246091,2.60193748,2150.7,2142.7,0.9315451]
[1773414246092,2.58737156,2150.7,2149.1,6.495095]
[1773414246289,2.57259131,2150.7,2149.8,0.028979]
[1773414246601,2.57259131,2150.7,2150.0,0.028979]
[1773414246801,2.57259131,2150.7,2150.1,0.028979]
[1773414247001,2.57259131,2150.7,2150.0,0.028979]
[1773414247203,1.41017417,2150.7,2150.2,0.028979]
[1773414247705,1.36717876,2150.7,2150.3,0.028979]
[1773414248010,1.33836853,2150.7,2150.3,0.028979]
[1773414248699,1.16241275,2150.7,2150.2,0.028979]
[1773414248903,28.15112272,2151.2,2150.2,0.028979]
[1773414249077,4.64874372,2151.2,2150.2,0.028979]
[1773414249272,9.52874372,2151.2,2150.2,0.028979]
[1773414249481,4.64874372,2151.2,2150.2,0.028979]
[1773414249881,4.64874372,2151.2,2149.9,1.16284478]
[1773414250081,1.16217144,2151.2,2150.3,0.028979]
[1773414250312,7.66892678,2151.5,2150.5,0.028979]
[1773414250313,1.16203402,2151.4,2150.5,0.028979]
[1773414250476,5.93805705,2151.5,2150.5,0.028979]
[1773414250477,1.61,2151.3,2150.5,0.028979]
[1773414250680,1.61,2151.3,2150.8,0.028979]
[1773414251078,1.61,2151.3,2150.8,1.19132679]
[1773414251280,1.61,2151.3,2150.7,1.16236914]
[1773414251481,1.61,2151.3,2150.8,0.028979]
[1773414251779,2.77209601,2151.3,2150.8,0.028979]
[1773414252192,1.61,2151.3,2150.8,0.028979]
[1773414252382,2.77209603,2151.3,2150.8,0.028979]
[1773414252586,2.74360104,2151.3,2150.8,0.028979]
[1773414252783,2.69979765,2151.3,2150.4,0.0011]
[1773414252998,2.68508342,2151.3,2150.4,0.0011]
[1773414253207,2.67011562,2151.3,2150.4,0.0011]
[1773414253700,8.00851719,2151.2,2150.4,0.0011]
[1773414254081,5.900822,2151.1,2150.4,0.0011]
[1773414254283,8.00851719,2151.2,2150.4,0.0011]
[1773414254284,3.9,2151.2,2150.4,0.0011]
[1773414254607,2.67011562,2151.3,2150.7,0.028979]
[1773414254809,1.50801959,2151.3,2150.7,0.028979]
[1773414255109,2.67011053,2151.3,2150.7,0.028979]
[1773414255309,2.67011053,2151.3,2150.4,0.0011]
[1773414255828,1.50801959,2151.3,2150.6,0.028979]
[1773414256027,1.50801959,2151.3,2150.7,0.028979]
[1773414256315,1.49373448,2151.3,2150.7,0.028979]
[1773414256513,1.27529312,2151.5,2151.0,0.028979]
[1773414256810,2.36621593,2151.5,2151.0,0.028979]
[1773414257220,2.26172814,2151.5,2151.0,0.028979]
[1773414257430,2.21728526,2151.5,2151.0,0.028979]
[1773414257633,2.17385906,2151.5,2150.5,4.64998426]
[1773414257922,2.1023314,2151.5,2150.7,0.028979]
[1773414258128,2.08782458,2151.5,2150.7,0.028979]
[1773414258351,2.07290231,2151.5,2150.7,0.028979]
[1773414258493,1.56706723,2151.4,2150.8,0.028979]
[1773414258698,1.53956711,2151.4,2151.0,0.028979]
[1773414258897,1.49697605,2151.4,2151.0,0.028979]
[1773414259208,1.46923508,2151.4,2151.0,0.028979]
[1773414259406,2.5871695,2151.4,2151.0,0.028979]
[1773414259617,2.54252728,2151.4,2151.0,0.028979]
[1773414259814,1.33787071,2151.4,2151.0,1.19122432]
[1773414259993,1.29459406,2151.4,2151.0,0.028979]
[1773414260197,1.28003462,2151.4,2151.0,0.028979]
[1773414260398,2.41382667,2151.4,2150.8,0.028979]
[1773414260632,2.37081574,2151.4,2150.8,0.028979]
[1773414260854,2.3124931,2151.4,2150.8,0.028979]
[1773414260999,2.28402242,2151.4,2150.8,0.028979]
[1773414261506,20.72722754,2151.3,2150.4,0.0011]
[1773414261816,5.8948438,2151.1,2150.1,0.030079]
[1773414262018,14.727524,2151.0,2150.1,0.0011]
[1773414262198,12.62576428,2151.0,2150.1,0.0011]
[1773414262397,11.602514,2151.0,2150.1,0.0011]
[1773414262594,6.76395462,2151.0,2150.1,0.0011]
[1773414262827,6.70802613,2151.0,2150.1,0.0011]
[1773414263123,5.85191893,2151.1,2150.1,0.0011]
[1773414263430,1.13386879,2151.0,2150.1,0.0011]
[1773414263622,1.08971916,2151.0,2150.1,0.0011]
[1773414263825,1.04666113,2151.0,2150.1,0.0011]
[1773414264003,1.0322832,2151.0,2150.1,0.0011]
[1773414264200,6.370016,2150.7,2149.9,0.0011]
[1773414264402,15.99231447,2150.6,2149.9,0.0011]
[1773414264714,2.065769,2150.5,2149.9,0.0011]
[1773414265036,7.52085954,2150.6,2150.3,0.0011]
[1773414265240,4.2192,2150.5,2149.9,0.0011]
[1773414265536,2.779541,2150.3,2148.8,7.04506257]
[1773414265735,1.1625744,2150.4,2149.8,0.0011]
[1773414266046,6.62396707,2150.3,2149.8,0.0011]
[1773414266203,7.07243394,2150.4,2149.8,0.0011]
[1773414266399,1.1625744,2150.4,2149.8,0.0011]
[1773414267098,25.724343,2150.2,2149.2,0.244444]
[1773414267330,1.16273661,2150.1,2149.2,0.244444]
[1773414268029,1.16273661,2150.1,2149.1,0.244444]
[1773414268915,1.16273661,2150.1,2149.0,0.244444]
[1773414269115,10.865797,2150.0,2149.0,0.244444]
[1773414269438,1.16284478,2149.9,2148.9,0.244444]
[1773414269603,1.59776472,2149.8,2148.9,0.244444]
[1773414269930,1.52398309,2149.8,2148.9,1.40782629]
[1773414270138,1.50924312,2149.8,2148.7,5.88162252]
[1773414270329,1.49452546,2149.8,2148.7,7.04507668]
[1773414270633,1.4798883,2149.8,2149.2,0.244444]
[1773414270855,1.4798883,2149.8,2148.8,0.244444]
[1773414271064,5.90985954,2149.7,2148.5,0.0011]
[1773414271266,2.59410261,2149.8,2148.9,0.244444]
[1773414271428,1.16295297,2149.7,2148.9,0.244444]
[1773414271624,1.16295297,2149.7,2148.6,1.16354746]
[1773414271863,1.16295297,2149.7,2148.5,0.0011]
[1773414271864,1.11421431,2149.8,2149.2,0.130877]
[1773414272164,1.11421431,2149.8,2148.5,0.0011]
[1773414272165,1.613,2150.5,2149.4,6.12606652]
[1773414272325,1.16317554,2151.2,2150.4,0.244444]
[1773414272525,1.16314568,2151.2,2150.4,0.23298624]
[1773414273259,1.16314568,2151.2,2150.6,0.23298624]